fUSD/lending_fUSD_20240630
["ID","MTS","AMOUNT","RATE_DAILY","PERIOD"]
[330761551,1719760236756,-500.0,0.00014253,3]
[330761552,1719760236766,-850.22,0.00014253,3]
[330761553,1719760236776,-500.0,0.00014253,3]
[330761554,1719760236785,-467.31,0.00014253,3]
[330761555,1719760236795,-680.91,0.00014253,3]
[330761556,1719760236805,-500.0,0.00014253,3]
[330761557,1719760236814,-500.0,0.00014253,3]
[330761558,1719760236824,-500.0,0.00014253,3]
[330761559,1719760236833,-500.0,0.00014254,3]
[330761560,1719760236843,-242.26,0.00014254,3]
[330761561,1719760236852,-500.0,0.00014254,3]
[330761562,1719760236862,-7025.7,0.00014254,3]
[330761563,1719760236871,-704.28,0.00014254,3]
[330761564,1719760236881,-581.69,0.00014254,3]
[330761565,1719760236891,-500.0,0.00014254,3]
[330761566,1719760236901,-500.0,0.00014254,3]
[330761567,1719760236911,-218.26,0.00014254,3]
[330761568,1719760236920,-1173.15,0.00014254,3]
[330761569,1719760236930,-500.0,0.00014254,3]
[330761570,1719760236939,-500.0,0.00014254,3]
[330761571,1719760236949,-527.84,0.00014254,3]
[330761572,1719760236958,-500.0,0.00014254,3]
[330761573,1719760236968,-500.0,0.00014262,3]
[330761574,1719760236977,-500.0,0.00014262,3]
[330761575,1719760236987,-500.0,0.00014262,3]
[330761576,1719760236996,-557.59,0.00014262,3]
[330761577,1719760237006,-500.0,0.00014262,3]
[330761578,1719760237015,-500.0,0.00014262,3]
[330761579,1719760237025,-500.0,0.00014262,3]
[330761580,1719760237034,-585.03,0.00014262,3]
[330761581,1719760237044,-500.0,0.00014262,3]
[330761582,1719760237053,-500.0,0.00014262,3]
[330761583,1719760237064,-500.0,0.00014262,3]
[330761584,1719760237074,-500.0,0.00014262,3]
[330761585,1719760237083,-500.0,0.00014262,3]
[330761586,1719760237093,-500.0,0.00014262,3]
[330761587,1719760237103,-500.0,0.00014262,3]
[330761588,1719760237113,-500.0,0.00014262,3]
[330761589,1719760237123,-1349.44,0.00014262,3]
[330761590,1719760237132,-500.0,0.00014353,3]
[330761591,1719760237142,-500.0,0.00014353,3]
[330761592,1719760237151,-500.0,0.00014363,3]
[330761593,1719760237161,-500.0,0.00014363,3]
[330761594,1719760237170,-500.0,0.00014363,3]
[330761595,1719760237180,-500.0,0.00014363,3]
[330761596,1719760237190,-850.22,0.00014363,3]
[330761597,1719760237199,-500.0,0.00014363,3]
[330761598,1719760237209,-680.91,0.00014363,3]
[330761599,1719760237218,-500.0,0.00014363,3]
[330761600,1719760237227,-500.0,0.00014363,3]
[330761601,1719760237236,-500.0,0.00014363,3]
[330761602,1719760237245,-500.0,0.00014364,3]
[330761603,1719760237256,-351.46,0.00014364,3]
[330761604,1719760237265,-7025.7,0.00014364,3]
[330761605,1719760237275,-704.28,0.00014364,3]
[330761606,1719760237284,-581.69,0.00014364,3]
[330761607,1719760237295,-500.0,0.00014364,3]
[330761608,1719760237304,-634.76,0.00014364,3]
[330761609,1719760237314,-1173.15,0.00014364,3]
[330761610,1719760237323,-500.0,0.00014364,3]
[330761611,1719760237333,-199.92,0.00014364,3]
[330761612,1719760237342,-527.84,0.00014364,3]
[330761613,1719760237351,-500.0,0.00014364,3]
[330761614,1719760237360,-500.0,0.00014372,3]
[330761615,1719760237370,-500.0,0.00014372,3]
[330761616,1719760237380,-500.0,0.00014372,3]
[330761617,1719760237390,-557.59,0.00014372,3]
[330761618,1719760237401,-500.0,0.00014372,3]
[330761619,1719760237411,-210.31,0.00014372,3]
[330761620,1719760237421,-500.0,0.00014372,3]
[330761621,1719760237433,-585.03,0.00014372,3]
[330761622,1719760237442,-500.0,0.00014372,3]
[330761623,1719760237451,-500.0,0.00014372,3]
[330761624,1719760237461,-500.0,0.00014372,3]
[330761625,1719760237470,-500.0,0.00014372,3]
[330761626,1719760237480,-500.0,0.00014372,3]
[330761627,1719760237490,-361.16,0.00014372,3]
[330761628,1719760237499,-500.0,0.00014372,3]
[330761629,1719760237508,-500.0,0.00014372,3]
[330761630,1719760237518,-1349.44,0.00014372,3]
[330761631,1719760237528,-174.77,0.00014384,2]
[330761632,1719760237539,-500.0,0.00014463,3]
[330761633,1719760237553,-166.98,0.00014463,3]
[330761634,1719760237562,-500.0,0.00014473,3]
[330761635,1719760237572,-7025.7,0.00014473,3]
[330761636,1719760237582,-500.0,0.00014473,3]
[330761637,1719760237592,-500.0,0.00014473,3]
[330761638,1719760237602,-500.0,0.00014473,3]
[330761639,1719760237612,-704.28,0.00014473,3]
[330761640,1719760237623,-500.0,0.00014473,3]
[330761641,1719760237634,-581.69,0.00014473,3]
[330761642,1719760237644,-850.22,0.00014473,3]
[330761643,1719760237656,-500.0,0.00014473,3]
[330761644,1719760237666,-500.0,0.00014473,3]
[330761645,1719760237679,-1173.15,0.00014473,3]
[330761646,1719760237689,-500.0,0.00014473,3]
[330761647,1719760237699,-680.91,0.00014473,3]
[330761648,1719760237710,-527.84,0.00014473,3]
[330761649,1719760237720,-500.0,0.00014473,3]
[330761650,1719760237730,-500.0,0.00014473,3]
[330761651,1719760237740,-500.0,0.00014473,3]
[330761652,1719760237751,-500.0,0.00014473,3]
[330761653,1719760237760,-500.0,0.00014481,3]
[330761654,1719760237770,-500.0,0.00014481,3]
[330761655,1719760237780,-500.0,0.00014481,3]
[330761656,1719760237790,-557.59,0.00014481,3]
[330761657,1719760237800,-500.0,0.00014481,3]
[330761658,1719760237810,-500.0,0.00014481,3]
[330761659,1719760237820,-585.03,0.00014481,3]
[330761660,1719760237830,-500.0,0.00014481,3]
[330761661,1719760237840,-500.0,0.00014481,3]
[330761662,1719760237849,-500.0,0.00014481,3]
[330761663,1719760237859,-500.0,0.00014481,3]
[330761664,1719760237868,-500.0,0.00014481,3]
[330761665,1719760237879,-500.0,0.00014481,3]
[330761666,1719760237889,-500.0,0.00014481,3]
[330761667,1719760237899,-1349.44,0.00014481,3]
[330761668,1719760237911,-150.0,0.00014495,2]
[330761669,1719760237921,-500.0,0.00014573,3]
[330761670,1719760237931,-500.0,0.00014582,3]
[330761671,1719760237941,-500.0,0.00014582,3]
[330761672,1719760237950,-500.0,0.00014582,3]
[330761673,1719760237960,-166.28,0.00014582,3]
[330761674,1719760237970,-850.22,0.00014582,3]
[330761675,1719760237980,-252.90792982,0.00014582,3]
[330761676,1719760237990,-680.91,0.00014582,3]
[330761677,1719760238000,-500.0,0.00014582,3]
[330761678,1719760238009,-500.0,0.00014582,3]
[330761679,1719760238019,-500.0,0.00014582,3]
[330761680,1719760238028,-500.0,0.00014583,3]
[330761681,1719760238038,-7025.7,0.00014583,3]
[330761682,1719760238048,-704.28,0.00014583,3]
[330761683,1719760238057,-581.69,0.00014583,3]
[330761684,1719760238067,-204.27,0.00014583,3]
[330761685,1719760238076,-1173.15,0.00014583,3]
[330761686,1719760238085,-500.0,0.00014583,3]
[330761687,1719760238095,-527.84,0.00014583,3]
[330761688,1719760238104,-500.0,0.00014583,3]
[330761689,1719760238113,-500.0,0.00014591,3]
[330761690,1719760238123,-224.28,0.00014591,3]
[330761691,1719760238132,-500.0,0.00014591,3]
[330761692,1719760238142,-557.59,0.00014591,3]
[330761693,1719760238152,-500.0,0.00014591,3]
[330761694,1719760238162,-500.0,0.00014591,3]
[330761695,1719760238172,-585.03,0.00014591,3]
[330761696,1719760238182,-500.0,0.00014591,3]
[330761697,1719760238191,-500.0,0.00014591,3]
[330761699,1719760238201,-500.0,0.00014591,3]
[330761701,1719760238210,-500.0,0.00014591,3]
[330761704,1719760238220,-500.0,0.00014591,3]
[330761705,1719760238230,-500.0,0.00014591,3]
[330761706,1719760238239,-500.0,0.00014591,3]
[330761707,1719760238249,-1349.44,0.00014591,3]
[330761708,1719760238258,-942.15496647,0.00014592,2]
[330761709,1719760238267,-4445.75266228,0.00014592,2]
[330761710,1719760238277,-546.00429772,0.00014592,2]
[330761711,1719760238287,-500.0,0.00014682,3]
[330761712,1719760238296,-541.58,0.00014692,3]
[330761713,1719760238306,-500.0,0.00014692,3]
[330761714,1719760238315,-500.0,0.00014692,3]
[330761715,1719760238325,-850.22,0.00014692,3]
[330761716,1719760238335,-680.91,0.00014692,3]
[330761717,1719760238344,-500.0,0.00014692,3]
[330761718,1719760238354,-500.0,0.00014692,3]
[330761719,1719760238363,-500.0,0.00014692,3]
[330761720,1719760238373,-500.0,0.00014693,3]
[330761721,1719760238382,-7025.7,0.00014693,3]
[330761722,1719760238392,-704.28,0.00014693,3]
[330761723,1719760238402,-581.69,0.00014693,3]
[330761724,1719760238411,-1173.15,0.00014693,3]
[330761725,1719760238422,-500.0,0.00014693,3]
[330761726,1719760238431,-527.84,0.00014693,3]
[330761727,1719760238441,-500.0,0.00014693,3]
[330761728,1719760238450,-500.0,0.00014701,3]
[330761729,1719760238459,-500.0,0.00014701,3]
[330761730,1719760238469,-557.59,0.00014701,3]
[330761731,1719760238478,-500.0,0.00014701,3]
[330761732,1719760238488,-538.3,0.00014701,3]
[330761733,1719760238497,-500.0,0.00014701,3]
[330761734,1719760238507,-500.0,0.00014701,3]
[330761735,1719760238517,-500.0,0.00014701,3]
[330761736,1719760238526,-500.0,0.00014701,3]
[330761737,1719760238540,-500.0,0.00014701,3]
[330761738,1719760238551,-500.0,0.00014701,3]
[330761739,1719760238561,-500.0,0.00014701,3]
[330761740,1719760238571,-1349.44,0.00014701,3]
[330761741,1719760238583,-174.58,0.00014752,2]
[330761742,1719760238592,-1133.58035,0.0001476,2]
[330761743,1719760238602,-500.0,0.00014792,3]
[330761745,1719760238613,-500.0,0.00014801,3]
[330761747,1719760238624,-500.0,0.00014801,3]
[330761748,1719760238633,-850.22,0.00014801,3]
[330761750,1719760238643,-680.91,0.00014801,3]
[330761752,1719760238655,-500.0,0.00014801,3]
[330761754,1719760238664,-500.0,0.00014801,3]
[330761756,1719760238674,-500.0,0.00014801,3]
[330761758,1719760238688,-421.34,0.00014802,3]
[330761760,1719760238698,-7025.7,0.00014802,3]
[330761762,1719760238708,-704.28,0.00014802,3]
[330761764,1719760238717,-581.69,0.00014802,3]
[330761766,1719760238727,-500.0,0.00014802,3]
[330761768,1719760238736,-527.84,0.00014802,3]
[330761770,1719760238746,-500.0,0.00014802,3]
[330761772,1719760238756,-500.0,0.0001481,3]
[330761774,1719760238766,-500.0,0.0001481,3]
[330761776,1719760238776,-557.59,0.0001481,3]
[330761778,1719760238786,-500.0,0.0001481,3]
[330761780,1719760238796,-500.0,0.0001481,3]
[330761782,1719760238805,-500.0,0.0001481,3]
[330761784,1719760238815,-210.44,0.0001481,3]
[330761786,1719760238826,-500.0,0.0001481,3]
[330761788,1719760238835,-500.0,0.0001481,3]
[330761790,1719760238845,-500.0,0.0001481,3]
[330761792,1719760238854,-500.0,0.0001481,3]
[330761794,1719760238864,-1349.44,0.0001481,3]
[330761796,1719760238874,-1390.26911616,0.00014871,2]
[330761798,1719760238883,-500.0,0.0001488,2]
[330761800,1719760238893,-210.78231524,0.000149,2]
[330761802,1719760238903,-210.78231522,0.000149,2]
[330761804,1719760238912,-210.78231522,0.000149,2]
[330761806,1719760238921,-500.0,0.00014901,3]
[330761808,1719760238931,-500.0,0.00014911,3]
[330761810,1719760238940,-500.0,0.00014911,3]
[330761812,1719760238950,-850.22,0.00014911,3]
[330761814,1719760238960,-680.91,0.00014911,3]
[330761816,1719760238969,-500.0,0.00014911,3]
[330761818,1719760238978,-357.19,0.00014911,3]
[330761820,1719760238988,-500.0,0.00014911,3]
[330761822,1719760238997,-7025.7,0.00014912,3]
[330761824,1719760239007,-704.28,0.00014912,3]
[330761826,1719760239017,-581.69,0.00014912,3]
[330761828,1719760239028,-500.0,0.00014912,3]
[330761830,1719760239040,-527.84,0.00014912,3]
[330761832,1719760239050,-500.0,0.00014912,3]
[330761834,1719760239061,-500.0,0.0001492,3]
[330761836,1719760239071,-500.0,0.0001492,3]
[330761838,1719760239081,-557.59,0.0001492,3]
[330761840,1719760239091,-500.0,0.0001492,3]
[330761842,1719760239102,-500.0,0.0001492,3]
[330761844,1719760239112,-500.0,0.0001492,3]
[330761846,1719760239122,-500.0,0.0001492,3]
[330761848,1719760239140,-466.51,0.0001492,3]
[330761851,1719760239155,-500.0,0.0001492,3]
[330761853,1719760239166,-500.0,0.0001492,3]
[330761855,1719760239177,-1349.44,0.0001492,3]
[330761857,1719760239187,-2536.54395639,0.00014999,2]
[330761859,1719760239199,-51602.17591497,0.00015,2]
[330761921,1719760239814,-13.61852137,0.00013714,3]
[330761923,1719760239826,-435.61147863,0.00013714,3]
[330761925,1719760239836,-461.65351825,0.00014,2]
[330761927,1719760239846,-10168.57142707,0.00015,2]
[330761929,1719760239858,-313.999999,0.00015,2]
[330761934,1719760239895,-458.39071946,0.00015,2]
[330761936,1719760239907,-2702.22081626,0.00015,2]
[330761938,1719760239919,-25823.8941717,0.00015,2]
[330761941,1719760239930,-4259.9738215,0.00015,2]
[330761943,1719760239943,-314.13896946,0.00015,2]
[330761945,1719760239955,-61048.83599555,0.00015,2]
[330761947,1719760239966,-597.57707239,0.00015,2]
[330761949,1719760239977,-2501.34418487,0.00015,2]
[330761952,1719760239990,-13234.8,0.00015,2]
[330761954,1719760240001,-291.65588544,0.00015,2]
[330762005,1719760240669,-2323.69989031,0.00015,2]
[330762008,1719760240684,-28308.16632658,0.00015,2]
[330762011,1719760240693,-24639.44045413,0.00015,2]
[330762014,1719760240702,-169.71864522,0.00015,2]
[330762016,1719760240712,-2000.0,0.00015,2]
[330762018,1719760240721,-3967.8675886,0.00015,2]
[330762020,1719760240731,-832.0,0.00015,3]
[330762022,1719760240741,-622.7781919,0.00015,2]
[330762024,1719760240755,-151.0,0.00015,2]
[330762026,1719760240765,-490.0,0.00015,2]
[330762028,1719760240775,-5000.0,0.00015,2]
[330762031,1719760240785,-151.437105,0.00015,2]
[330762033,1719760240796,-500.0,0.00015011,3]
[330762035,1719760240805,-898.0,0.00015021,2]
[330762037,1719760240815,-7025.7,0.00015021,3]
[330762039,1719760240825,-500.0,0.00015021,3]
[330762041,1719760240836,-500.0,0.00015021,3]
[330762043,1719760240846,-704.28,0.00015021,3]
[330762045,1719760240855,-581.69,0.00015021,3]
[330762047,1719760240865,-850.22,0.00015021,3]
[330762049,1719760240875,-500.0,0.00015021,3]
[330762051,1719760240884,-680.91,0.00015021,3]
[330762053,1719760240894,-527.84,0.00015021,3]
[330762055,1719760240905,-477.29,0.00015021,3]
[330762057,1719760240915,-500.0,0.00015021,3]
[330762059,1719760240924,-500.0,0.00015021,3]
[330762061,1719760240935,-500.0,0.00015029,3]
[330762063,1719760240945,-557.59,0.00015029,3]
[330762065,1719760240955,-500.0,0.00015029,3]
[330762067,1719760240964,-500.0,0.00015029,3]
[330762069,1719760240974,-500.0,0.00015029,3]
[330762071,1719760240983,-500.0,0.00015029,3]
[330762073,1719760240993,-500.0,0.00015029,3]
[330762075,1719760241002,-256.44,0.00015029,3]
[330762077,1719760241012,-1349.44,0.00015029,3]
[330762080,1719760241022,-250.0,0.00015043,2]
[330762081,1719760241031,-157.48,0.00015068,2]
[330762084,1719760241040,-174.77,0.00015068,2]
[330762086,1719760241050,-247.39,0.00015068,2]
[330762087,1719760241059,-400.0,0.00015114,2]
[330762089,1719760241069,-500.0,0.00015121,3]
[330762091,1719760241078,-500.0,0.0001513,3]
[330762093,1719760241088,-500.0,0.0001513,3]
[330762096,1719760241098,-850.22,0.0001513,3]
[330762098,1719760241107,-680.91,0.0001513,3]
[330762100,1719760241118,-500.0,0.0001513,3]
[330762102,1719760241127,-7025.7,0.00015131,3]
[330762104,1719760241136,-704.28,0.00015131,3]
[330762106,1719760241145,-581.69,0.00015131,3]
[330762108,1719760241154,-500.0,0.00015131,3]
[330762109,1719760241163,-527.84,0.00015131,3]
[330762112,1719760241173,-270.91720998,0.00015131,3]
[330762113,1719760241182,-500.0,0.00015139,3]
[330762116,1719760241192,-557.59,0.00015139,3]
[330762118,1719760241203,-500.0,0.00015139,3]
[330762120,1719760241212,-500.0,0.00015139,3]
[330762122,1719760241222,-500.0,0.00015139,3]
[330762124,1719760241231,-500.0,0.00015139,3]
[330762126,1719760241240,-180.08,0.00015139,3]
[330762128,1719760241249,-1349.44,0.00015139,3]
[330762130,1719760241258,-546.00429772,0.00015144,2]
[330762132,1719760241268,-578.71083876,0.0001515,2]
[330762134,1719760241277,-500.0,0.00015151,2]
[330762136,1719760241286,-200.0,0.00015151,2]
[330762138,1719760241295,-482.49,0.00015196,2]
[330762140,1719760241306,-500.0,0.0001523,3]
[330762142,1719760241315,-500.0,0.0001524,3]
[330762144,1719760241324,-850.22,0.0001524,3]
[330762146,1719760241333,-680.91,0.0001524,3]
[330762148,1719760241343,-500.0,0.0001524,3]
[330762150,1719760241353,-7025.7,0.00015241,3]
[330762152,1719760241363,-704.28,0.00015241,3]
[330762154,1719760241373,-581.69,0.00015241,3]
[330762156,1719760241384,-500.0,0.00015241,3]
[330762158,1719760241393,-527.84,0.00015241,3]
[330762160,1719760241403,-8160.47057001,0.00015249,2]
[330762162,1719760241413,-500.0,0.00015249,3]
[330762164,1719760241422,-557.59,0.00015249,3]
[330762166,1719760241432,-500.0,0.00015249,3]
[330762168,1719760241442,-500.0,0.00015249,3]
[330762170,1719760241452,-500.0,0.00015249,3]
[330762172,1719760241461,-500.0,0.00015249,3]
[330762174,1719760241471,-1349.44,0.00015249,3]
[330762176,1719760241480,-1133.58035,0.0001528,2]
[330762179,1719760241490,-500.0,0.0001534,3]
[330762181,1719760241499,-500.0,0.00015349,3]
[330762183,1719760241509,-850.22,0.00015349,3]
[330762185,1719760241518,-680.91,0.00015349,3]
[330762187,1719760241528,-500.0,0.00015349,3]
[330762189,1719760241541,-7025.7,0.0001535,3]
[330762191,1719760241550,-704.28,0.0001535,3]
[330762193,1719760241560,-581.69,0.0001535,3]
[330762194,1719760241570,-305.86593583,0.0001535,3]
[330762197,1719760241580,-527.84,0.0001535,3]
[330762199,1719760241590,-500.0,0.00015358,3]
[330762201,1719760241599,-557.59,0.00015358,3]
[330762203,1719760241608,-500.0,0.00015358,3]
[330762205,1719760241620,-618.91,0.00015358,3]
[330762207,1719760241630,-500.0,0.00015358,3]
[330762209,1719760241639,-500.0,0.00015358,3]
[330762210,1719760241649,-1349.44,0.00015358,3]
[330762213,1719760241661,-500.0,0.00015421,2]
[330762215,1719760241670,-500.0,0.00015449,3]
[330762217,1719760241686,-500.0,0.00015459,3]
[330762219,1719760241695,-850.22,0.00015459,3]
[330762221,1719760241705,-680.91,0.00015459,3]
[330762223,1719760241715,-638.41,0.00015459,3]
[330762225,1719760241724,-7025.7,0.0001546,3]
[330762227,1719760241734,-704.28,0.0001546,3]
[330762229,1719760241744,-581.69,0.0001546,3]
[330762231,1719760241754,-527.84,0.0001546,3]
[330762233,1719760241764,-500.0,0.00015468,3]
[330762235,1719760241774,-557.59,0.00015468,3]
[330762237,1719760241784,-500.0,0.00015468,3]
[330762239,1719760241793,-500.0,0.00015468,3]
[330762241,1719760241803,-500.0,0.00015468,3]
[330762243,1719760241812,-1349.44,0.00015468,3]
[330762245,1719760241822,-1104.44226968,0.00015546,2]
[330762247,1719760241831,-500.0,0.00015559,3]
[330762249,1719760241841,-942.15496647,0.00015568,2]
[330762251,1719760241850,-4445.75266228,0.00015568,2]
[330762253,1719760241859,-7025.7,0.00015569,3]
[330762255,1719760241869,-504.97,0.00015569,3]
[330762257,1719760241879,-704.28,0.00015569,3]
[330762259,1719760241888,-581.69,0.00015569,3]
[330762261,1719760241897,-850.22,0.00015569,3]
[330762263,1719760241909,-680.91,0.00015569,3]
[330762265,1719760241920,-527.84,0.00015569,3]
[330762267,1719760241930,-500.0,0.00015577,3]
[330762269,1719760241940,-557.59,0.00015577,3]
[330762271,1719760241950,-500.0,0.00015577,3]
[330762273,1719760241960,-500.0,0.00015577,3]
[330762275,1719760241970,-500.0,0.00015577,3]
[330762277,1719760241979,-1349.44,0.00015577,3]
[330762279,1719760241989,-301.0638839,0.00015591,2]
[330762281,1719760241999,-315.76,0.000156,2]
[330762283,1719760242009,-1011.52,0.000156,2]
[330762285,1719760242019,-163.836136,0.00015659,2]
[330762287,1719760242028,-163.836136,0.00015659,2]
[330762289,1719760242038,-151.0,0.00015659,2]
[330762292,1719760242048,-272.815292,0.00015659,2]
[330762294,1719760242060,-8677.9294112,0.00015659,2]
[330762296,1719760242070,-3106.3725661,0.00015659,2]
[330762298,1719760242079,-1995.3479874,0.00015659,2]
[330762300,1719760242088,-2400.4091269,0.00015659,2]
[330762302,1719760242098,-532.29,0.00015669,3]
[330762304,1719760242107,-850.22,0.00015678,3]
[330762306,1719760242120,-680.91,0.00015678,3]
[330762308,1719760242130,-7025.7,0.00015679,3]
[330762310,1719760242139,-704.28,0.00015679,3]
[330762312,1719760242148,-581.69,0.00015679,3]
[330762314,1719760242161,-257.18303,0.00015679,2]
[330762316,1719760242170,-224.923613,0.00015679,2]
[330762318,1719760242180,-527.84,0.00015679,3]
[330762320,1719760242190,-194.76,0.00015682,2]
[330762322,1719760242199,-500.0,0.00015687,3]
[330762324,1719760242210,-557.59,0.00015687,3]
[330762327,1719760242220,-500.0,0.00015687,3]
[330762329,1719760242229,-320.26901822,0.00015687,3]
[330762331,1719760242238,-500.0,0.00015687,3]
[330762333,1719760242248,-1349.44,0.00015687,3]
[330762335,1719760242257,-546.00429772,0.00015696,2]
[330762337,1719760242267,-174.77,0.00015753,2]
[330762339,1719760242276,-600.0,0.00015769,2]
[330762341,1719760242285,-850.22,0.00015788,3]
[330762343,1719760242295,-680.91,0.00015788,3]
[330762344,1719760242305,-7025.7,0.00015789,3]
[330762345,1719760242314,-704.28,0.00015789,3]
[330762346,1719760242323,-581.69,0.00015789,3]
[330762347,1719760242333,-527.84,0.00015789,3]
[330762348,1719760242342,-293.07,0.00015796,3]
[330762349,1719760242352,-557.59,0.00015796,3]
[330762350,1719760242362,-500.0,0.00015796,3]
[330762351,1719760242371,-245.82005,0.00015796,2]
[330762352,1719760242381,-500.0,0.00015796,3]
[330762353,1719760242391,-2910.909912,0.00015796,2]
[330762355,1719760242400,-2910.909912,0.00015796,2]
[330762357,1719760242411,-151.0,0.00015796,2]
[330762359,1719760242421,-807.222171,0.00015796,2]
[330762361,1719760242430,-807.222171,0.00015796,2]
[330762363,1719760242439,-1349.44,0.00015796,3]
[330762365,1719760242448,-182.43,0.0001581,2]
[330762367,1719760242458,-150.0,0.00015813,2]
[330762369,1719760242467,-165.77,0.00015831,2]
[330762370,1719760242476,-166.78,0.00015831,2]
[330762371,1719760242485,-166.55,0.00015831,2]
[330762372,1719760242495,-167.22,0.00015831,2]
[330762373,1719760242504,-850.22,0.00015897,3]
[330762374,1719760242514,-680.91,0.00015897,3]
[330762375,1719760242525,-7025.7,0.00015898,3]
[330762376,1719760242535,-704.28,0.00015898,3]
[330762377,1719760242547,-581.69,0.00015898,3]
[330762378,1719760242557,-527.84,0.00015898,3]
[330762379,1719760242566,-8160.47056994,0.00015899,2]
[330762380,1719760242575,-1133.58036,0.000159,2]
[330762381,1719760242586,-557.59,0.00015906,3]
[330762382,1719760242596,-500.0,0.00015906,3]
[330762383,1719760242606,-500.0,0.00015906,3]
[330762384,1719760242615,-1349.44,0.00015906,3]
[330762385,1719760242628,-424.12,0.00015981,2]
[330762386,1719760242640,-150.0,0.00015981,2]
[330762387,1719760242649,-151.74,0.00015981,2]
[330762388,1719760242659,-2000.0,0.00016,2]
[330762389,1719760242669,-1011.52,0.00016,2]
[330762390,1719760242679,-850.22,0.00016007,3]
[330762391,1719760242689,-680.91,0.00016007,3]
[330762392,1719760242699,-7025.7,0.00016008,3]
[330762393,1719760242709,-704.28,0.00016008,3]
[330762394,1719760242718,-581.69,0.00016008,3]
[330762395,1719760242728,-527.84,0.00016008,3]
[330762396,1719760242738,-2000.0,0.0001601,2]
[330762397,1719760242748,-557.59,0.00016016,3]
[330762398,1719760242757,-586.98,0.00016016,3]
[330762399,1719760242767,-334.39,0.00016016,3]
[330762400,1719760242776,-1349.44,0.00016016,3]
[330762401,1719760242786,-2000.0,0.0001602,2]
[330762402,1719760242796,-2000.0,0.0001603,2]
[330762403,1719760242806,-2199.930939,0.0001604,2]
[330762404,1719760242815,-850.22,0.00016116,3]
[330762405,1719760242825,-680.91,0.00016116,3]
[330762406,1719760242834,-7025.7,0.00016117,3]
[330762407,1719760242844,-704.28,0.00016117,3]
[330762408,1719760242853,-581.69,0.00016117,3]
[330762409,1719760242862,-527.84,0.00016117,3]
[330762410,1719760242872,-557.59,0.00016125,3]
[330762411,1719760242882,-1349.44,0.00016125,3]
[330762412,1719760242891,-1390.26911616,0.00016126,2]
[330762413,1719760242901,-803.90794601,0.00016172,2]
[330762414,1719760242911,-1706.66,0.00016219,2]
[330762415,1719760242921,-418.84,0.00016219,2]
[330762416,1719760242930,-418.84,0.00016219,2]
[330762418,1719760242939,-850.22,0.00016226,3]
[330762420,1719760242949,-680.91,0.00016226,3]
[330762422,1719760242958,-7025.93702163,0.00016227,3]
[330762424,1719760242967,-704.41774178,0.00016227,3]
[330762426,1719760242976,-581.86,0.00016227,3]
[330762428,1719760242986,-527.84467571,0.00016227,3]
[330762430,1719760242996,-557.80007718,0.00016235,3]